Workbook

Sheet Collateral Tables
B1: CNH CAPITAL AUSTRALIA RECEIVABLES TRUST SERIES 2013-1 (TERM DEAL)
B2: COLLATERAL DATA TABLES
B4: OUTSTANDING RECEIVABLES | E4: 2013-12-31 | I4: 2013-09-30
B6: Opening Balance | E6: =I13 -> 367572501.2 | I6: 399999996.3
B7: Principal Repayments - Scheduled | E7: =[3]Sheet1!$B$2+[4]Sheet1!$B$2+[5]Sheet1!$B$2 -> 19784632.49 | I7: 28316894.3
B8: Principal Repayments - Unscheduled | E8: =MAX('[2]16 Jan 14'!H23-'Collateral Tables'!E7,0) -> 4506158.4 | I8: 3783540.98
A9: =SUM(I9) -> 327059.82 | B9: Charge-Offs | E9: ='[2]16 Jan 14'!$H37 -> 98493.91 | I9: 327059.82
B10: Reinstatements
B11: New Receivables Purchased
B12: Non Cash Change in Receivables
B13: Closing Balance | E13: =E6-E7-E8-E9+E10+E11-E12 -> 343183216.4 | I13: 367572501.2
B15: PORTFOLIO STATISTICS
B17: Summary
B18: Number of contracts | E18: ='[6]Servicer Recon'!$B$4 -> 4387 | I18: 4617
B19: Dollar value of contracts | E19: ='[6]Servicer Recon'!$B$5 -> 343183216.4 | I19: 367572501.2
B20: Number of contracts closed during the Quarter | E20: ='[6]Servicer Recon'!$B$19 -> 228 | I20: 183
B21: Dollar value of contracts closed during the Quarter | E21: ='[6]Servicer Recon'!$B$20 -> 9069702.03 | I21: 8446613.11
A23: =SUM(I23) -> 446.2836364 | B23: Dollar Value of Recoveries from Collateral | E23: =MAX('[6]Servicer Recon'!$C$16,0) -> 94500 | I23: 446.2836364
B24: Dollar Value of Recoveries from Other Sources | E24: 0 | I24: 0
B26: Average Term of Contracts (Months) | E26: ='[7]Revised Base Table'!$W$4390 -> 51.71925231 | I26: 51.33729628
B27: Average Term to Maturity (Months) | E27: ='[7]Revised Base Table'!$X$4390 -> 31.62549431 | I27: 33.93763482
B28: Average Residual / Balloon Payment * | E28: ='[7]Revised Base Table'!$AI$4390 -> 0.02875625437 | I28: 0.03068307372
B29: Average Seasoning (Months) | E29: =E26-E27 -> 20.093758 | I29: 17.39966146
B30: Average Dollar Value of Individual Assets | E30: =E19/E18 -> 78227.3117 | I30: 79612.8441
B31: Weighted Average Interest Rate | E31: ='[7]Revised Base Table'!$AA$4390 -> 5.676805232 | I31: 0.05702300669
B33: Payment in Arrears
A34: 1. 0 - 30 Days | B34: 0 - 30 Days | E34: =IFERROR(VLOOKUP($A34,[8]Arrears!$A:$D,3,FALSE),0) -> 4375 | F34: =IFERROR(VLOOKUP($A34,[8]Arrears!$A:$D,2,FALSE),0) -> 439735.71 | G34: =F34/F$50 -> 0.001281343868 | I34: 4592 | J34: 151245.6 | K34: 0.0004114714771
A35: 2. 31 - 60 Days | B35: 31 - 60 Days | E35: =IFERROR(VLOOKUP($A35,[8]Arrears!$A:$D,3,FALSE),0) -> 7 | F35: =IFERROR(VLOOKUP($A35,[8]Arrears!$A:$D,2,FALSE),0) -> 47270.05 | G35: =F35/F$50 -> 0.0001377399819 | I35: 12 | J35: 113514.02 | K35: 0.0003088207622
A36: 3. 61 - 90 Days | B36: 61 - 90 Days | E36: =IFERROR(VLOOKUP($A36,[8]Arrears!$A:$D,3,FALSE),0) -> 5 | F36: =IFERROR(VLOOKUP($A36,[8]Arrears!$A:$D,2,FALSE),0) -> 79546.5 | G36: 0.0002317901814 | I36: 6 | J36: 75092.27 | K36: 0.0002042924042
A37: 4. 91 - 120 Days | B37: 91 - 120 Days | E37: =IFERROR(VLOOKUP($A37,[8]Arrears!$A:$D,3,FALSE),0) -> 0 | F37: =IFERROR(VLOOKUP($A37,[8]Arrears!$A:$D,2,FALSE),0) -> 0 | G37: 0 | I37: 4 | J37: 69228.5 | K37: 0.0001883397147
A38: 5. 121 - 150 Days | B38: 121 - 150 Days | E38: =IFERROR(VLOOKUP($A38,[8]Arrears!$A:$D,3,FALSE),0) -> 0 | F38: =IFERROR(VLOOKUP($A38,[8]Arrears!$A:$D,2,FALSE),0) -> 0 | G38: 0 | I38: 3 | J38: 96751.02 | K38: 0.0002632161538
A39: 6. 151 - 180 Days | B39: 151 - 180 Days | E39: =IFERROR(VLOOKUP($A39,[8]Arrears!$A:$D,3,FALSE),0) -> 0 | F39: =IFERROR(VLOOKUP($A39,[8]Arrears!$A:$D,2,FALSE),0) -> 0 | G39: 0 | I39: 0 | J39: 0 | K39: 0
B40: Total | E40: =SUM(E34:E39) -> 4387 | F40: =SUM(F34:F39) -> 566552.26 | G40: =SUM(G34:G39) -> 0.001650874031 | I40: 4617 | J40: 505831.41 | K40: 0.001376140512
B41: * Expressed as a % of Aggreg. Rec. closing bal. | F41: > 30 days | G41: =SUM(G35:G39) -> 0.0003695301633 | J41: > 30 days | K41: 0.0009646690349
A43: 0 - 30 Days | B43: Account Balances in Arrears
A44: 1. 0 - 30 Days | B44: 0 - 30 Days | E44: =IFERROR(VLOOKUP($A44,[8]Arrears!$A:$D,3,FALSE),0) -> 4375 | F44: =IFERROR(VLOOKUP($A44,[8]Arrears!$A:$D,4,FALSE),0) -> 342575641.1 | G44: =F44/F$50 -> 0.9982295891 | I44: 4592 | J44: 366297114.9 | K44: 0.9965302456
A45: 2. 31 - 60 Days | B45: 31 - 60 Days | E45: =IFERROR(VLOOKUP($A45,[8]Arrears!$A:$D,3,FALSE),0) -> 7 | F45: =IFERROR(VLOOKUP($A45,[8]Arrears!$A:$D,4,FALSE),0) -> 207562.01 | G45: =F45/F$50 -> 0.0006048139888 | I45: 12 | J45: 447641.17 | K45: 0.001217830955
A46: 3. 61 - 90 Days | B46: 61 - 90 Days | E46: =IFERROR(VLOOKUP($A46,[8]Arrears!$A:$D,3,FALSE),0) -> 5 | F46: =IFERROR(VLOOKUP($A46,[8]Arrears!$A:$D,4,FALSE),0) -> 400013.29 | G46: 0.001165596891 | I46: 6 | J46: 318477.56 | K46: 0.0008664346733
A47: 4. 91 - 120 Days | B47: 91 - 120 Days | E47: =IFERROR(VLOOKUP($A47,[8]Arrears!$A:$D,3,FALSE),0) -> 0 | F47: =IFERROR(VLOOKUP($A47,[8]Arrears!$A:$D,2,FALSE),0) -> 0 | G47: 0 | I47: 4 | J47: 167153.97 | K47: 0.0004547510204
A48: 5. 121 - 150 Days | B48: 121 - 150 Days | E48: =IFERROR(VLOOKUP($A48,[8]Arrears!$A:$D,3,FALSE),0) -> 0 | F48: =IFERROR(VLOOKUP($A48,[8]Arrears!$A:$D,2,FALSE),0) -> 0 | G48: 0 | I48: 3 | J48: 342113.59 | K48: 0.0009307377153
A49: 6. 151 - 180 Days | B49: 151 - 180 Days | E49: =IFERROR(VLOOKUP($A49,[8]Arrears!$A:$D,3,FALSE),0) -> 0 | F49: =IFERROR(VLOOKUP($A49,[8]Arrears!$A:$D,2,FALSE),0) -> 0 | G49: 0 | I49: 0 | J49: 0 | K49: 0
B50: Total | E50: =SUM(E44:E49) -> 4387 | F50: =SUM(F44:F49) -> 343183216.4 | G50: =SUM(G44:G49) -> 1 | I50: 4617 | J50: 367572501.2 | K50: 1
A51: NSW | F51: > 30 days | G51: =SUM(G45:G49) -> 0.00177041088 | J51: > 30 days | K51: 0.003469754364
F52: >90 days | G52: =SUM(G47:G49) -> 0 | J52: >90 days | K52: 0.001385488736
A54: VIC | B54: Geographic Distribution
A55: NSW | B55: New South Wales | E55: =F55/F$63 -> 0.3046258425 | F55: =IFERROR(VLOOKUP($A55,[8]Geographic!$A:$C,3,FALSE),0) -> 104542476.4 | I55: 0.3059472855 | J55: 112457809
A56: VIC | B56: Victoria | E56: 0.1734633512 | F56: =IFERROR(VLOOKUP($A56,[8]Geographic!$A:$C,3,FALSE),0) -> 59529710.81 | I56: 0.1756070784 | J56: 64548333.02
A57: QLD | B57: Queensland | E57: 0.1091496833 | F57: =IFERROR(VLOOKUP($A57,[8]Geographic!$A:$C,3,FALSE),0) -> 37458339.39 | I57: 0.1150399122 | J57: 42285508.27
A58: SA | B58: South Australia | E58: 0.2027304143 | F58: =IFERROR(VLOOKUP($A58,[8]Geographic!$A:$C,3,FALSE),0) -> 69573675.65 | I58: 0.1964366123 | J58: 72204696.93
A59: NT | B59: Northern Territory | E59: 0.001668558987 | F59: =IFERROR(VLOOKUP($A59,[8]Geographic!$A:$C,3,FALSE),0) -> 572621.44 | I59: 0.001668146986 | J59: 613164.96
A60: ACT | B60: Australian Capital Territory | E60: 0.0007719315728 | F60: =IFERROR(VLOOKUP($A60,[8]Geographic!$A:$C,3,FALSE),0) -> 264913.96 | I60: 0.0008142892328 | J60: 299310.33
A61: TAS | B61: Tasmania | E61: 0.01076270381 | F61: =IFERROR(VLOOKUP($A61,[8]Geographic!$A:$C,3,FALSE),0) -> 3693579.31 | I61: 0.01100606002 | J61: 4045525.01
A62: WA | B62: Western Australia | E62: 0.1968275143 | F62: =IFERROR(VLOOKUP($A62,[8]Geographic!$A:$C,3,FALSE),0) -> 67547899.42 | I62: 0.1934806154 | J62: 71118153.72
B63: Total | E63: =SUM(E55:E62) -> 1 | F63: =SUM(F55:F62) -> 343183216.4 | I63: 1 | J63: 367572501.2
A64: AG
A65: CE | B65: Top Industry Distribution
A66: AGRICULTURAL MACHINERY | B66: Agricultural | E66: =F66/F$69 -> 0.9791638656 | F66: =IFERROR(VLOOKUP($A66,'[8]Top Industry'!$A:$C,3,FALSE),) -> 336032604.8 | I66: 0.9764435228 | J66: 358913787.9
A67: CONSTRUCTION EQUIPMENT | B67: Construction | E67: =F67/F$69 -> 0.02083613437 | F67: =IFERROR(VLOOKUP($A67,'[8]Top Industry'!$A:$C,3,FALSE),) -> 7150611.61 | I67: 0.02355647724 | J67: 8658713.26
A68: MOTOR VEHICLE - AG | B68: Motor Vehicle AG | E68: =F68/F$69 -> 0 | F68: =IFERROR(VLOOKUP($A68,'[8]Top Industry'!$A:$C,3,FALSE),) -> 0 | I68: 0 | J68: 0
B69: Total | E69: =SUM(E66:E68) -> 1 | F69: =SUM(F66:F68) -> 343183216.4 | I69: 1 | J69: 367572501.2
A70: COMBINE
A71: 40-100 HP TRACTOR | B71: Collateral Types
A72: 100<140 HP TRACTOR | B72: 100-140 HP TRACTOR | E72: =IFERROR(F72/F$107,0) -> 0.08762345555 | F72: =IFERROR(VLOOKUP($A72,[8]Collateral!$A:$C,3,FALSE),"") -> 30067418.99 | I72: 0.08991845161 | J72: 33059288.45
A73: 4 EWD Tractors | B73: 4 EWD Tractors | E73: 0.1245816069 | F73: =IFERROR(VLOOKUP($A73,[8]Collateral!$A:$C,3,FALSE),"") -> 42749368.29 | I73: 0.1233070393 | J73: 45334888.53
A74: 40<100 HP Tractor | B74: 40<100 HP Tractor | E74: =IFERROR(F74/F$107,0) -> 0 | F74: =IFERROR(VLOOKUP($A74,[8]Collateral!$A:$C,3,FALSE),"") ->  | I74: 0
A75: 40<60 HP TRACTOR | B75: 40-60 HP TRACTOR | E75: =IFERROR(F75/F$107,0) -> 0.009511286254 | F75: =IFERROR(VLOOKUP($A75,[8]Collateral!$A:$C,3,FALSE),"") -> 3263736.03 | I75: 0.0102989267 | J75: 3786488.56
A76: 4WD VEHICLE | B76: 4WD VEHICLE | E76: 0.0001338491632 | F76: =IFERROR(VLOOKUP($A76,[8]Collateral!$A:$C,3,FALSE),"") -> 45929.47 | I76: 0.0001276589616 | J76: 46934.91
A77: 60<100 HP TRACTOR | B77: 60-100 HP TRACTOR | E77: 0.06218415497 | F77: =IFERROR(VLOOKUP($A77,[8]Collateral!$A:$C,3,FALSE),"") -> 21338088.42 | I77: 0.06601199806 | J77: 24269876.16
A78: Backhoes | B78: Backhoes | E78: 0.0008233559492 | F78: =IFERROR(VLOOKUP($A78,[8]Collateral!$A:$C,3,FALSE),"") -> 282529.24 | I78: 0.0008685204008 | J78: 319318.96
A79: BALERS, WINDROWERS, MOWERS, RAKES | B79: BALERS, WINDROWERS, MOWERS, RAKES | E79: 0.03604800486 | F79: =IFERROR(VLOOKUP($A79,[8]Collateral!$A:$C,3,FALSE),"") -> 12369638.46 | I79: 0.03930031066 | J79: 14449095.63
A80: Cane Harvesters | B80: Cane Harvesters | E80: 0 | F80: =IFERROR(VLOOKUP($A80,[8]Collateral!$A:$C,3,FALSE),"") ->  | I80: 0
A81: Combines | B81: Combines | E81: 0.3812091033 | F81: =IFERROR(VLOOKUP($A81,[8]Collateral!$A:$C,3,FALSE),"") -> 130809424.9 | I81: 0.3726457121 | J81: 137006386
A82: COMMERCIAL VEHICLE | B82: COMMERCIAL VEHICLE | E82: 0 | F82: =IFERROR(VLOOKUP($A82,[8]Collateral!$A:$C,3,FALSE),"") ->  | I82: 0
A83: Cotton Pickers | B83: Cotton Pickers | E83: 0.0007297534178 | F83: =IFERROR(VLOOKUP($A83,[8]Collateral!$A:$C,3,FALSE),"") -> 250410.14 | I83: 0.0007105958852 | J83: 261256.66
A84: CRAWLERS / DOZERS | B84: CRAWLERS / DOZERS | E84: 0.001586526494 | F84: =IFERROR(VLOOKUP($A84,[8]Collateral!$A:$C,3,FALSE),"") -> 544406.25 | I84: 0.001580351726 | J84: 581029.84
A85: CULTIVATORS,SEEDERS, HARROWS | B85: CULTIVATORS,SEEDERS, HARROWS | E85: 0.02169807179 | F85: =IFERROR(VLOOKUP($A85,[8]Collateral!$A:$C,3,FALSE),"") -> 7445552.24 | I85: 0.0214602304 | J85: 7890037.41
A86: Drill | B86: Drill | E86: 0.0005082168286 | F86: =IFERROR(VLOOKUP($A86,[8]Collateral!$A:$C,3,FALSE),"") -> 174391.3 | I86: 0.0005272742458 | J86: 193856.89
A87: DUMP TRUCKS | B87: DUMP TRUCKS | E87: 0.000687524758 | F87: =IFERROR(VLOOKUP($A87,[8]Collateral!$A:$C,3,FALSE),"") -> 235919.65 | I87: 0.0006817972085 | J87: 250668.58
A88: EXCAVATORS / GRADERS | B88: EXCAVATORS / GRADERS | E88: 0.01064417545 | F88: =IFERROR(VLOOKUP($A88,[8]Collateral!$A:$C,3,FALSE),"") -> 3652479.59 | I88: 0.01293236814 | J88: 4754695.85
A89: FEEDERS, MIXERS, WAGONS, BINS, FEED STORAGE | B89: FEEDERS, MIXERS, WAGONS, BINS, FEED STORAGE | E89: 0.001936712819 | F89: =IFERROR(VLOOKUP($A89,[8]Collateral!$A:$C,3,FALSE),"") -> 664570.41 | I89: 0.002221406921 | J89: 816719.27
A90: Front End Loader | B90: Front End Loader | E90: 0.0003986452637 | F90: =IFERROR(VLOOKUP($A90,[8]Collateral!$A:$C,3,FALSE),"") -> 136792.53 | I90: 0.0003857074345 | J90: 141808.64
A91: Fronts | B91: Fronts | E91: 0.006853530951 | F91: =IFERROR(VLOOKUP($A91,[8]Collateral!$A:$C,3,FALSE),"") -> 2351744.58 | I91: 0.006894400552 | J91: 2534785.38
A92: GUIDANCE SYSTEMS | B92: Guidance Systems | E92: 0.001386233787 | F92: =IFERROR(VLOOKUP($A92,[8]Collateral!$A:$C,3,FALSE),"") -> 475677.11 | I92: 0.001458010823 | J92: 536050.16
A93: HARVESTERS - Other | B93: HARVESTERS - Other | E93: 0.007504500623 | F93: =IFERROR(VLOOKUP($A93,[8]Collateral!$A:$C,3,FALSE),"") -> 2575120.59 | I93: 0.007374727299 | J93: 2711381.62
A94: Irrigation Equipment | B94: Irrigation Equipment | E94: 0.001016873881 | F94: =IFERROR(VLOOKUP($A94,[8]Collateral!$A:$C,3,FALSE),"") -> 348933.66 | I94: 0.001012908199 | J94: 372404.37
A95: Other AG | B95: Other AG | E95: 0.006546180438 | F95: =IFERROR(VLOOKUP($A95,[8]Collateral!$A:$C,3,FALSE),"") -> 2246279.25 | I95: 0.006539013559 | J95: 2404124.31
A96: MATERIALS HANDLING EQUIPMENT | B96: MATERIALS HANDLING EQUIPMENT | E96: 0.001222623518 | F96: =IFERROR(VLOOKUP($A96,[8]Collateral!$A:$C,3,FALSE),"") -> 419535.31 | I96: 0.001243940927 | J96: 457345.53
A97: Other CE | B97: Other CE | E97: 0.002568684083 | F97: =IFERROR(VLOOKUP($A97,[8]Collateral!$A:$C,3,FALSE),"") -> 881427.24 | I97: 0.002708992984 | J97: 995984.46
A98: Over 100 HP Tractor | B98: Over 100 HP Tractor | E98: 0 | F98: =IFERROR(VLOOKUP($A98,[8]Collateral!$A:$C,3,FALSE),"") ->  | I98: 0
A99: OVER 140 HP TRACTOR | B99: OVER 140 HP TRACTOR | E99: 0.1924135006 | F99: =IFERROR(VLOOKUP($A99,[8]Collateral!$A:$C,3,FALSE),"") -> 66025441.54 | I99: 0.1887911566 | J99: 69410684.82
A100: Rollers | B100: Rollers | E100: 3.611763036e-05 | F100: =IFERROR(VLOOKUP($A100,[8]Collateral!$A:$C,3,FALSE),"") -> 12393.53 | I100: 3.756651278e-05 | J100: 13811.65
A101: SCRAPERS | B101: SCRAPERS | E101: 0.001075042986 | F101: =IFERROR(VLOOKUP($A101,[8]Collateral!$A:$C,3,FALSE),"") -> 368894.01 | I101: 0.001076433444 | J101: 395759.97
A102: SKIDSTEER / UNILOADER | B102: SKIDSTEER / UNILOADER | E102: 0.001691642227 | F102: =IFERROR(VLOOKUP($A102,[8]Collateral!$A:$C,3,FALSE),"") -> 580476.03 | I102: 0.001835079536 | J102: 674682.7
A103: SPRAYING EQUIPMENT | B103: SPRAYING EQUIPMENT | E103: 0.03352257941 | F103: =IFERROR(VLOOKUP($A103,[8]Collateral!$A:$C,3,FALSE),"") -> 11503055.14 | I103: 0.03379582332 | J103: 12425323.74
A104: Trenchers | B104: Trenchers | E104: 9.395197707e-05 | F104: =IFERROR(VLOOKUP($A104,[8]Collateral!$A:$C,3,FALSE),"") -> 32239.01 | I104: 0.0001051443219 | J104: 38657.21
A105: Under 40 HP Tractors | B105: Under 40 HP Tractors | E105: 0.003355193115 | F105: =IFERROR(VLOOKUP($A105,[8]Collateral!$A:$C,3,FALSE),"") -> 1151312.7 | I105: 0.003667684004 | J105: 1348455.42
A106: Wheel Loaders | B106: Wheel Loaders | E106: 0.0004089010897 | F106: =IFERROR(VLOOKUP($A106,[8]Collateral!$A:$C,3,FALSE),"") -> 140311.75 | I106: 0.0004807681071 | J106: 176758.51
B107: Total | E107: =SUM(E72:E106) -> 1 | F107: =SUM(F72:F106) -> 343143497.4 | I107: 1 | J107: 367658560.1
A108: $ 0 - $25,000
A109: $ 25,001 to $50,000 | B109: Contract Balance Distribution
A110: $0 - $25,000 | B110: $ 0 - $25,000 | E110: =IFERROR(F110/F$121,0) -> 0.05478729049 | F110: =IFERROR(VLOOKUP($A110,'[8]Balance Distribution'!$A:$C,3,FALSE),"") -> 18802078.57 | I110: 0.0512030052 | J110: 18820816.69
A111: $25,001 - $50,000 | B111: $ 25,001 to $50,000 | E111: =IFERROR(F111/F$121,0) -> 0.106498401 | F111: =IFERROR(VLOOKUP($A111,'[8]Balance Distribution'!$A:$C,3,FALSE),"") -> 36548463.8 | I111: 0.1089189301 | J111: 40035603.57
A112: $50,001 - $75,000 | B112: $ 50,001 to $75,000 | E112: 0.09945748495 | F112: =IFERROR(VLOOKUP($A112,'[8]Balance Distribution'!$A:$C,3,FALSE),"") -> 34132139.58 | I112: 0.1003596521 | J112: 36889448.36
A113: $75,001 - $100,000 | B113: $ 75,001 to $100,000 | E113: 0.09157359485 | F113: =IFERROR(VLOOKUP($A113,'[8]Balance Distribution'!$A:$C,3,FALSE),"") -> 31426520.82 | I113: 0.0869530449 | J113: 31961548.2
A114: $100,001 - $125,000 | B114: $100,001 to $125,000 | E114: 0.09080424831 | F114: =IFERROR(VLOOKUP($A114,'[8]Balance Distribution'!$A:$C,3,FALSE),"") -> 31162494 | I114: 0.09161931668 | J114: 33676741.39
A115: $125,001 - $150,000 | B115: $125,001 to $150,000 | E115: 0.08965405649 | F115: =IFERROR(VLOOKUP($A115,'[8]Balance Distribution'!$A:$C,3,FALSE),"") -> 30767767.47 | I115: 0.09178465717 | J115: 33737516.01
A116: $150,001 - $200,000 | B116: $150,000 to $200,000 | E116: 0.1672794451 | F116: =IFERROR(VLOOKUP($A116,'[8]Balance Distribution'!$A:$C,3,FALSE),"") -> 57407498.02 | I116: 0.1686315119 | J116: 61984306.61
A117: $200,001 - $300,000 | B117: $200,001 to $300,000 | E117: 0.2321345207 | F117: =IFERROR(VLOOKUP($A117,'[8]Balance Distribution'!$A:$C,3,FALSE),"") -> 79664671.45 | I117: 0.2317617934 | J117: 85189262.1
A118: $300,001 - $400,000 | B118: $300,001 to $400,000 | E118: 0.02983316922 | F118: =IFERROR(VLOOKUP($A118,'[8]Balance Distribution'!$A:$C,3,FALSE),"") -> 10238242.97 | I118: 0.02867134295 | J118: 10538797.24
A119: $400,001 - $500,000 | B119: $400,001 to $500,000 | E119: 0.0063606992 | F119: =IFERROR(VLOOKUP($A119,'[8]Balance Distribution'!$A:$C,3,FALSE),"") -> 2182885.21 | I119: 0.004682074949 | J119: 1721002
A120: $500,001+ | B120: $500,000+ | E120: 0.03161708965 | F120: =IFERROR(VLOOKUP($A120,'[8]Balance Distribution'!$A:$C,3,FALSE),"") -> 10850454.52 | I120: 0.03541467057 | J120: 13017459.04
A121: $200,001 to $300,000 | B121: Total | E121: =SUM(E110:E120) -> 1 | F121: =SUM(F110:F120) -> 343183216.4 | I121: 1 | J121: 367572501.2
A122: 0
A123: 0 to 5 | B123: Residual / Balloon Payment Distribution
A124: 0 | B124: 0 | E124: =IFERROR(F124/F$134,0) -> 0.8997742796 | F124: =IFERROR(VLOOKUP($A124,[8]Residual!$A:$C,3,FALSE),"") -> 308787431.3 | I124: 0.8965867149 | J124: 329560621.3
A125: 0 to 5 | B125: 0 to 5 | E125: =IFERROR(F125/F$134,0) -> 0 | F125: =IFERROR(VLOOKUP($A125,[8]Residual!$A:$C,3,FALSE),"") ->  | I125: 0
A126: 6 to 10 | B126: 06 to 10 | E126: 0.001571913556 | F126: =IFERROR(VLOOKUP($A126,[8]Residual!$A:$C,3,FALSE),"") -> 539454.35 | I126: 0.001562914767 | J126: 574484.49
A127: 11 to 15 | B127: 11 to 15 | E127: 0.006486545564 | F127: =IFERROR(VLOOKUP($A127,[8]Residual!$A:$C,3,FALSE),"") -> 2226073.57 | I127: 0.006292321004 | J127: 2312884.17
A128: 16 to 20 | B128: 16 to 20 | E128: 0.01143719804 | F128: =IFERROR(VLOOKUP($A128,[8]Residual!$A:$C,3,FALSE),"") -> 3925054.41 | I128: 0.01098168627 | J128: 4036565.89
A129: 21 to 25 | B129: 21 to 25 | E129: 0.01549990488 | F129: =IFERROR(VLOOKUP($A129,[8]Residual!$A:$C,3,FALSE),"") -> 5319307.21 | I129: 0.01546736282 | J129: 5685377.24
A130: 26 to 30 | B130: 26 to 30 | E130: 0.03934839215 | F130: =IFERROR(VLOOKUP($A130,[8]Residual!$A:$C,3,FALSE),"") -> 13503707.78 | I130: 0.03977652774 | J130: 14620757.79
A131: 31 to 35 | B131: 31 to 35 | E131: 0.008691034169 | F131: =IFERROR(VLOOKUP($A131,[8]Residual!$A:$C,3,FALSE),"") -> 2982617.06 | I131: 0.009126479862 | J131: 3354643.03
A132: 36 to 40 | B132: 36 to 40 | E132: 0.008996313812 | F132: =IFERROR(VLOOKUP($A132,[8]Residual!$A:$C,3,FALSE),"") -> 3087383.91 | I132: 0.008723050771 | J132: 3206353.59
A133: 41+ % | B133: 41+% | E133: 0.008194418187 | F133: =IFERROR(VLOOKUP($A133,[8]Residual!$A:$C,3,FALSE),"") -> 2812186.79 | I133: 0.01148294189 | J133: 4220813.67
E134: =SUM(E124:E133) -> 1 | F134: =SUM(F124:F133) -> 343183216.4 | I134: 1 | J134: 367572501.2
A135: 2004 Q1
A136: 2004 Q2 | B136: Quarter of Maturity Distribution
A137: =RIGHT(B137,2)&LEFT(B137,4) -> Q12013 | B137: 2013Q1 | E137: =F137/F$166 -> 0 | F137: =IFERROR(VLOOKUP($A137,'[8]Maturity Quarter'!$A:$C,3,FALSE),0) -> 0 | I137: 0 | J137: 0
A138: Q22013 | B138: 2013Q2 | E138: 0 | F138: =IFERROR(VLOOKUP($A138,'[8]Maturity Quarter'!$A:$C,3,FALSE),0) -> 0 | I138: 0 | J138: 0
A139: =RIGHT(B139,2)&LEFT(B139,4) -> Q32013 | B139: 2013Q3 | E139: 0 | F139: =IFERROR(VLOOKUP($A139,'[8]Maturity Quarter'!$A:$C,3,FALSE),0) -> 0 | I139: 0.001938438206 | J139: 712516.58
A140: =RIGHT(B140,2)&LEFT(B140,4) -> Q42013 | B140: 2013Q4 | E140: 0.0009928183947 | F140: =IFERROR(VLOOKUP($A140,'[8]Maturity Quarter'!$A:$C,3,FALSE),0) -> 340718.61 | I140: 0.007727535767 | J140: 2840429.65
A141: Q12014 | B141: 2014Q1 | E141: 0.01247873962 | F141: =IFERROR(VLOOKUP($A141,'[8]Maturity Quarter'!$A:$C,3,FALSE),0) -> 4282494 | I141: 0.01420914887 | J141: 5222892.39
A142: Q22014 | B142: 2014Q2 | E142: 0.007406964293 | F142: =IFERROR(VLOOKUP($A142,'[8]Maturity Quarter'!$A:$C,3,FALSE),0) -> 2541945.83 | I142: 0.007893864286 | J142: 2901567.44
A143: Q32014 | B143: 2014Q3 | E143: 0.006814714526 | F143: =IFERROR(VLOOKUP($A143,'[8]Maturity Quarter'!$A:$C,3,FALSE),0) -> 2338695.65 | I143: 0.007383964772 | J143: 2714142.4
A144: Q42014 | B144: 2014Q4 | E144: 0.009749893264 | F144: =IFERROR(VLOOKUP($A144,'[8]Maturity Quarter'!$A:$C,3,FALSE),0) -> 3345999.73 | I144: 0.01513125362 | J144: 5561832.74
A145: Q12015 | B145: 2015Q1 | E145: 0.05643503287 | F145: =IFERROR(VLOOKUP($A145,'[8]Maturity Quarter'!$A:$C,3,FALSE),0) -> 19367556.1 | I145: 0.05569733188 | J145: 20472807.59
A146: Q22015 | B146: 2015Q2 | E146: 0.0369692096 | F146: =IFERROR(VLOOKUP($A146,'[8]Maturity Quarter'!$A:$C,3,FALSE),0) -> 12687212.26 | I146: 0.03841443145 | J146: 14120088.65
A147: Q32015 | B147: 2015Q3 | E147: 0.03882100657 | F147: =IFERROR(VLOOKUP($A147,'[8]Maturity Quarter'!$A:$C,3,FALSE),0) -> 13322717.9 | I147: 0.03935613399 | J147: 14466232.61
A148: Q42015 | B148: 2015Q4 | E148: 0.05259008083 | F148: =IFERROR(VLOOKUP($A148,'[8]Maturity Quarter'!$A:$C,3,FALSE),0) -> 18048033.09 | I148: 0.05885873353 | J148: 21634851.9
A149: Q12016 | B149: 2016Q1 | E149: 0.1654127188 | F149: =IFERROR(VLOOKUP($A149,'[8]Maturity Quarter'!$A:$C,3,FALSE),0) -> 56766868.86 | I149: 0.1597350041 | J149: 58714194.97
A150: Q22016 | B150: 2016Q2 | E150: 0.05685960256 | F150: =IFERROR(VLOOKUP($A150,'[8]Maturity Quarter'!$A:$C,3,FALSE),0) -> 19513261.29 | I150: 0.05638804628 | J150: 20726695.21
A151: Q32016 | B151: 2016Q3 | E151: 0.05472444165 | F151: =IFERROR(VLOOKUP($A151,'[8]Maturity Quarter'!$A:$C,3,FALSE),0) -> 18780509.9 | I151: 0.05418514621 | J151: 19916969.72
A152: Q42016 | B152: 2016Q4 | E152: 0.05454875791 | F152: =IFERROR(VLOOKUP($A152,'[8]Maturity Quarter'!$A:$C,3,FALSE),0) -> 18720218.19 | I152: 0.05569263749 | J152: 20471082.06
A153: Q12017 | B153: 2017Q1 | E153: 0.2168207407 | F153: =IFERROR(VLOOKUP($A153,'[8]Maturity Quarter'!$A:$C,3,FALSE),0) -> 74409239.17 | I153: 0.2081614305 | J153: 76514417.65
A154: Q22017 | B154: 2017Q2 | E154: 0.100326235 | F154: =IFERROR(VLOOKUP($A154,'[8]Maturity Quarter'!$A:$C,3,FALSE),0) -> 34430280.02 | I154: 0.09456932403 | J154: 34761082.97
A155: Q32017 | B155: 2017Q3 | E155: 0.03758949667 | F155: =IFERROR(VLOOKUP($A155,'[8]Maturity Quarter'!$A:$C,3,FALSE),0) -> 12900084.37 | I155: 0.03596215083 | J155: 13218697.73
A156: Q42017 | B156: 2017Q4 | E156: 0.03429750619 | F156: =IFERROR(VLOOKUP($A156,'[8]Maturity Quarter'!$A:$C,3,FALSE),0) -> 11770328.49 | I156: 0.03499458174 | J156: 12863045.94
A157: Q12018 | B157: 2018Q1 | E157: 0.04686701741 | F157: =IFERROR(VLOOKUP($A157,'[8]Maturity Quarter'!$A:$C,3,FALSE),0) -> 16083973.78 | I157: 0.04401385935 | J157: 16178284.37
A158: Q22018 | B158: 2018Q2 | E158: 0.008800996947 | F158: =IFERROR(VLOOKUP($A158,'[8]Maturity Quarter'!$A:$C,3,FALSE),0) -> 3020354.44 | I158: 0.008292089044 | J158: 3047943.91
A159: Q32018 | B159: 2018Q3 | E159: 0.0014223299 | F159: =IFERROR(VLOOKUP($A159,'[8]Maturity Quarter'!$A:$C,3,FALSE),0) -> 488119.75 | I159: 0.001327955025 | J159: 488119.75
A160: Q42018 | B160: 2018Q4 | E160: 7.169633835e-05 | F160: =IFERROR(VLOOKUP($A160,'[8]Maturity Quarter'!$A:$C,3,FALSE),0) -> 24604.98 | I160: 6.693912063e-05 | J160: 24604.98
A161: Q12019 | B161: 2019Q1 | E161: 0 | F161: =IFERROR(VLOOKUP($A161,'[8]Maturity Quarter'!$A:$C,3,FALSE),0) -> 0 | I161: 0 | J161: 0
A162: Q22019 | B162: 2019Q2 | E162: 0 | F162: =IFERROR(VLOOKUP($A162,'[8]Maturity Quarter'!$A:$C,3,FALSE),0) -> 0 | I162: 0 | J162: 0
A163: Q32019 | B163: 2019Q3 | E163: 0 | F163: =IFERROR(VLOOKUP($A163,'[8]Maturity Quarter'!$A:$C,3,FALSE),0) -> 0 | I163: 0 | J163: 0
A164: Q42019 | B164: 2019Q4 | E164: 0 | F164: =IFERROR(VLOOKUP($A164,'[8]Maturity Quarter'!$A:$C,3,FALSE),0) -> 0 | I164: 0 | J164: 0
E166: =SUM(E137:E164) -> 1 | F166: =SUM(F137:F165) -> 343183216.4 | I166: 1 | J166: 367572501.2
A167: 0 to 6 months
A168: 07 to 12 months | B168: Seasoning Distribution
A169: 0 to 6 months | B169: 0 to 6 months | E169: =F169/F$180 -> 0 | F169: =IFERROR(VLOOKUP($A169,[8]Seasoning!$A:$C,3,FALSE),0) -> 0 | I169: 0.03223101892 | J169: 11847236.24
A170: 07 to 12 months | B170: 07 to 12 months | E170: 0.1185068623 | F170: =IFERROR(VLOOKUP($A170,[8]Seasoning!$A:$C,3,FALSE),0) -> 40669566.16 | I170: 0.3051640991 | J170: 112169931.2
A171: 13 to 18 months | B171: 13 to 18 months | E171: 0.344343907 | F171: =IFERROR(VLOOKUP($A171,[8]Seasoning!$A:$C,3,FALSE),0) -> 118173049.5 | I171: 0.2377991657 | J171: 87408434.11
A172: 19 to 24 months | B172: 19 to 24 months | E172: 0.2020032648 | F172: =IFERROR(VLOOKUP($A172,[8]Seasoning!$A:$C,3,FALSE),0) -> 69324130.14 | I172: 0.1990352719 | J172: 73159892.71
A173: 25 to 30 months | B173: 25 to 30 months | E173: 0.2475728884 | F173: =IFERROR(VLOOKUP($A173,[8]Seasoning!$A:$C,3,FALSE),0) -> 84962860.12 | I173: 0.1576850189 | J173: 57960676.8
A174: 31 to 36 months | B174: 31 to 36 months | E174: 0.03585937261 | F174: =IFERROR(VLOOKUP($A174,[8]Seasoning!$A:$C,3,FALSE),0) -> 12306334.83 | I174: 0.02670469741 | J174: 9815912.42
A175: 37 to 42 months | B175: 37 to 42 months | E175: 0.03157016443 | F175: =IFERROR(VLOOKUP($A175,[8]Seasoning!$A:$C,3,FALSE),0) -> 10834350.57 | I175: 0.02576500247 | J175: 9470506.4
A176: 43 to 48 months | B176: 43 to 48 months | E176: 0.01370962965 | F176: =IFERROR(VLOOKUP($A176,[8]Seasoning!$A:$C,3,FALSE),0) -> 4704914.8 | I176: 0.005895119855 | J176: 2166883.95
A177: 49 to 54 months | B177: 49 to 54 months | E177: 0.002379484051 | F177: =IFERROR(VLOOKUP($A177,[8]Seasoning!$A:$C,3,FALSE),0) -> 816598.99 | I177: 0.001375055774 | J177: 505432.69
A178: 55 to 60 months | B178: 55 to 60 months | E178: 0.003485962695 | F178: =IFERROR(VLOOKUP($A178,[8]Seasoning!$A:$C,3,FALSE),0) -> 1196323.89 | I178: 0.007342220844 | J178: 2698798.48
A179: 60+ months | B179: 61 to 72 months | E179: 0.0005684641925 | F179: =IFERROR(VLOOKUP($A179,[8]Seasoning!$A:$C,3,FALSE),0) -> 195087.37 | I179: 0.001003329245 | J179: 368796.24
A180: 61 to 72 months | B180: Total | E180: =SUM(E169:E179) -> 1 | F180: =SUM(F169:F179) -> 343183216.4 | I180: 1 | J180: 367572501.2
B182: Remaining Term Distribution
A183: 0 - 12 months | B183: 0-12 Months | E183: =F183/F$189 -> 0.04120139373 | F183: =IFERROR(VLOOKUP($A183,'[8]Remaining Term'!$A:$C,3,FALSE),0) -> 14139626.82 | I183: 0.04716175887 | J183: 15855852.1
A184: 13 - 24 months | B184: 13-24 Months | E184: 0.1860848676 | F184: =IFERROR(VLOOKUP($A184,'[8]Remaining Term'!$A:$C,3,FALSE),0) -> 63861203.38 | I184: 0.1652650331 | J184: 55562345.11
A185: 25 - 36 months | B185: 25-36 Months | E185: 0.3286957235 | F185: =IFERROR(VLOOKUP($A185,'[8]Remaining Term'!$A:$C,3,FALSE),0) -> 112802855.6 | I185: 0.3497533278 | J185: 117587578.8
A186: 37 - 48 months | B186: 37-48 Months | E186: 0.3888756462 | F186: =IFERROR(VLOOKUP($A186,'[8]Remaining Term'!$A:$C,3,FALSE),0) -> 133455595 | I186: 0.437746695 | J186: 147171077.2
A187: 49 - 60 months | B187: 49-60 Months | E187: 0.05514236905 | F187: =IFERROR(VLOOKUP($A187,'[8]Remaining Term'!$A:$C,3,FALSE),0) -> 18923935.57 | I187: 0 | J187: 0
A188: 60+ Months | B188: 60+ Months | E188: 0 | F188: =IFERROR(VLOOKUP($A188,'[8]Remaining Term'!$A:$C,3,FALSE),0) -> 0 | I188: 7.31852269e-05 | J188: 24604.98
E189: =SUM(E183:E188) -> 1 | F189: =SUM(F183:F188) -> 343183216.4 | I189: 1 | J189: 336201458.2
B191: Origination LVR Distribution
A192: 01. 10% to 20% | B192: 10% to 20% | E192: =F192/F$202 -> 0.002672637839 | F192: =IFERROR(VLOOKUP($A192,'[8]LVR Band'!$A:$C,3,FALSE),0) -> 917204.45 | I192: 0.002575286282 | J192: 946604.42
A193: 02. 21% to 30% | B193: 21% to 30% | E193: 0.01844295725 | F193: =IFERROR(VLOOKUP($A193,'[8]LVR Band'!$A:$C,3,FALSE),0) -> 6329313.39 | I193: 0.01756075541 | J193: 6454850.79
A194: 03. 31% to 40% | B194: 31% to 40% | E194: 0.05649885307 | F194: =IFERROR(VLOOKUP($A194,'[8]LVR Band'!$A:$C,3,FALSE),0) -> 19389458.12 | I194: 0.05574543809 | J194: 20490490.11
A195: 04. 41% to 50% | B195: 41% to 50% | E195: 0.1011302211 | F195: =IFERROR(VLOOKUP($A195,'[8]LVR Band'!$A:$C,3,FALSE),0) -> 34706194.55 | I195: 0.09857759639 | J195: 36234413.67
A196: 05. 51% to 60% | B196: 51% to 60% | E196: 0.1349200802 | F196: =IFERROR(VLOOKUP($A196,'[8]LVR Band'!$A:$C,3,FALSE),0) -> 46302307.07 | I196: 0.1324470357 | J196: 48683888.19
A197: 06. 61% to 70% | B197: 61% to 70% | E197: 0.1574692483 | F197: =IFERROR(VLOOKUP($A197,'[8]LVR Band'!$A:$C,3,FALSE),0) -> 54040803.11 | I197: 0.1574514432 | J197: 57874820.81
A198: 07. 71% to 80% | B198: 71% to 80% | E198: 0.161630179 | F198: =IFERROR(VLOOKUP($A198,'[8]LVR Band'!$A:$C,3,FALSE),0) -> 55468764.69 | I198: 0.1586728404 | J198: 58323772.83
A199: 08. 81% to 90% | B199: 81% to 90% | E199: 0.1618386593 | F199: =IFERROR(VLOOKUP($A199,'[8]LVR Band'!$A:$C,3,FALSE),0) -> 55540311.64 | I199: 0.1621507121 | J199: 59602142.83
A200: 09. 91% to 100% | B200: 91% to 100% | E200: 0.205397164 | F200: =IFERROR(VLOOKUP($A200,'[8]LVR Band'!$A:$C,3,FALSE),0) -> 70488859.39 | I200: 0.2148188923 | J200: 78961517.56
A201: > 100% | B201: > 100% | E201: 0 | F201: =IFERROR(VLOOKUP($A201,'[8]LVR Band'!$A:$C,3,FALSE),0) -> 0 | I201: 0 | J201: 0
E202: =SUM(E192:E201) -> 1 | F202: =SUM(F192:F201) -> 343183216.4 | I202: 1 | J202: 367572501.2
B204: New v Used
A205: New | B205: New | E205: =F205/F$208 -> 0.8440846783 | F205: =IFERROR(VLOOKUP($A205,'[8]New v Used'!$A:$C,3,FALSE),0) -> 289675694.8 | I205: 0.8419821362 | J205: 309489479.8
A206: USed | B206: Used | E206: =F206/F$208 -> 0.1559153217 | F206: =IFERROR(VLOOKUP($A206,'[8]New v Used'!$A:$C,3,FALSE),0) -> 53507521.6 | I206: 0.1580178638 | J206: 58083021.44
A207: Used
E208: =SUM(E205:E206) -> 1 | F208: =SUM(F205:F206) -> 343183216.4 | I208: 1 | J208: 367572501.2
B210: Contract Type
A211: Finance Lease | B211: Finance Lease | E211: =F211/F$214 -> 0.01496701541 | F211: =IFERROR(VLOOKUP($A211,'[8]Loan Type'!$A:$C,3,FALSE),0) -> 5136428.49 | I211: 0.01562613996 | J211: 5743739.35
A212: Goods Mortgage | B212: Goods Mortgage | E212: =F212/F$214 -> 0.9709367784 | F212: =IFERROR(VLOOKUP($A212,'[8]Loan Type'!$A:$C,3,FALSE),0) -> 333209206.5 | I212: 0.9681795041 | J212: 355876162
A213: Hire Purchase | B213: Hire Purchase | E213: =F213/F$214 -> 0.01409620619 | F213: =IFERROR(VLOOKUP($A213,'[8]Loan Type'!$A:$C,3,FALSE),0) -> 4837581.38 | I213: 0.01619435589 | J213: 5952599.9
E214: =SUM(E211:E213) -> 1 | F214: =SUM(F211:F213) -> 343183216.4 | I214: 1 | J214: 367572501.2
... 30 more rows

Sheet Note Balances
C1: TOTAL NOTE BALANCES
D2: Total Notes | E2: Class A1 Notes | F2: Class A2 Notes | G2: Class B Notes | H2: Class C Notes | I2: Seller Notes
C3: Initial Invested Amount | D3: 400000000 | E3: 100000000 | F3: 244800000 | G3: 13600000 | H3: 12000000 | I3: 29600000
A4: (a) | C4: Invested Amount as at Previous Payment Date: 16 October 2013 | D4: 367899561 | E4: 67899561.03 | F4: 244800000 | G4: 13600000 | H4: 12000000 | I4: 29600000
A5: (b) | C5: Stated Amount as at Previous Payment Date: 16 October 2013 | D5: 367572501.2 | E5: 67899561.03 | F5: 244800000 | G5: 13600000 | H5: 12000000 | I5: 29272940.18
A6: (d) | C6: Principal Payments to Noteholders on Payment Date | D6: 24290790.89 | E6: 24290790.89 | F6: 0 | G6: 0 | H6: 0 | I6: 0
C7: Gross Aggregate Charge-Offs | D7: 0 | E7: 0 | F7: 0 | G7: 0 | H7: 0 | I7: 0
C8: Gross Aggregate Reinstatements of charge-offs | D8: 0 | E8: 0 | F8: 0 | G8: 0 | H8: 0 | I8: 0
A9: (e) | C9: Aggregate Charge-Offs for this Collection Period | D9: 98493.91 | E9: 0 | F9: 0 | G9: 0 | H9: 0 | I9: 98493.91
A10: (f) | C10: Reinstatements relating to Charge-offs that have occurred this Collection Period | D10: 0 | E10: 0 | F10: 0 | G10: 0 | H10: 0 | I10: 0
C11: Aggregate Carry Over Charge-offs not previously reinstated | D11: 0 | E11: 0 | F11: 0 | G11: 0 | H11: 0 | I11: 0
C12: Reinstatements of Carry Over Charge-offs not previously reinstated | D12: 0 | E12: 0 | F12: 0 | G12: 0 | H12: 0 | I12: 0
C13: Aggregate Charge-Offs not reinstated and to be carried over to next period | D13: 98493.91 | E13: 0 | F13: 0 | G13: 0 | H13: 0 | I13: 98493.91
C14: Invested Amount as at Payment Date: 16 January 2014 | D14: 343608770.1 | E14: 43608770.14 | F14: 244800000 | G14: 13600000 | H14: 12000000 | I14: 29600000
C15: Stated Amount as at Payment Date: 16 January 2014 | D15: 343183216.4 | E15: 43608770.14 | F15: 244800000 | G15: 13600000 | H15: 12000000 | I15: 29174446.27
C16: Bond Factor at Payment Date: 16 January 2014 | E16: 0.4360877014 | F16: 1 | G16: 1 | H16: 1 | I16: 0.9856231848
C17: Coupon Margin | E17: 0.0045 | F17: 0.011 | G17: 0.0175 | H17: 0.025 | I17: 0.01
C18: Coupon Rate (3 month BBSW + margin) | E18: 0.03045 | F18: 0.03695 | G18: 0.04345 | H18: 0.05095 | I18: 0.03595
C19: Days in Coupon Period | E19: 92 | F19: 92 | G19: 92 | H19: 92 | I19: 92
C20: Coupon Entitlement to be paid out on the current Payment Date: 16 January 2014 | E20: 521133.78 | F20: 2279926.36 | G20: 148944.22 | H20: 154106.3 | I20: 265252.94

Sheet Cumulative Defaults
A1: Cumulative Defaults & Losses
A3: Month | B3: Gross Losses | C3: Recoveries | D3: Net Losses
A4: 2013-09-01 | B4: ='Collateral Tables'!I9/400000000 -> 0.00081764955 | C4: ='Collateral Tables'!I23/400000000 -> 1.115709091e-06 | D4: =B4-C4 -> 0.0008165338409
A5: 2013-12-01 | B5: ='Collateral Tables'!E9/400000000 -> 0.000246234775 | C5: ='Collateral Tables'!E23/400000000 -> 0.00023625 | D5: =B5-C5 -> 9.984775e-06
